bitfinex/quotes_ETHUSD_20260107
["timestamp","ask_amount","ask_price","bid_price","bid_amount"]
[1767744798194,1e-08,3284.0,3283.5,0.97093023]
[1767744798381,1e-08,3284.0,3283.5,4.01641998]
[1767744799292,1e-08,3284.0,3283.5,0.97093023]
[1767744799796,1e-08,3284.0,3283.5,4.01645736]
[1767744799996,1e-08,3284.0,3283.5,4.72572026]
[1767744800589,1e-08,3284.0,3283.5,3.75479003]
[1767744800994,1e-08,3284.0,3283.5,0.7092629]
[1767744801169,1e-08,3284.0,3283.3,3.04564546]
[1767744801498,1e-08,3284.0,3283.3,3.04567455]
[1767744801676,1e-08,3284.0,3283.2,4.0167314]
[1767744801875,0.002,3283.7,3283.2,4.04718948]
[1767744802385,0.002,3283.7,3283.3,3.04571346]
[1767744802593,0.002,3283.7,3283.4,0.40471018]
[1767744803495,0.002,3283.7,3283.4,3.45032886]
[1767744803802,0.002,3283.7,3283.4,0.40471018]
[1767744804098,0.98691256,3283.7,3282.8,3.04717908]
[1767744804299,0.98691256,3283.7,3282.8,4.04857111]
[1767744805003,0.98691256,3283.7,3283.0,3.04598158]
[1767744805185,0.98691256,3283.7,3282.9,3.04606272]
[1767744805385,4.03227682,3283.7,3283.0,0.4017993]
[1767744806092,0.98491256,3283.6,3283.0,0.4017993]
[1767744806304,0.98491256,3283.6,3282.8,1.00239203]
[1767744806305,0.98491256,3283.6,3282.8,0.97193023]
[1767744806602,0.98491256,3283.6,3282.8,4.01808696]
[1767744807915,0.98491256,3283.5,3282.8,0.001]
[1767744808205,0.98491256,3283.3,3282.8,0.001]
[1767744808779,0.98491256,3283.3,3282.0,0.03046922]
[1767744809102,0.98491256,3283.1,3282.3,3.04663523]
[1767744809305,0.98491256,3283.1,3282.1,3.04682299]
[1767744809306,0.98491256,3283.1,3282.1,7.06458299]
[1767744810208,0.98491256,3283.0,3282.1,4.01775322]
[1767744810974,0.98491256,3283.0,3282.1,3.04682299]
[1767744811213,0.98491256,3282.8,3282.0,3.04690308]
[1767744811577,0.98491256,3282.8,3281.9,0.797]
[1767744812391,0.98491256,3282.8,3281.9,3.84398956]
[1767744812589,0.98491256,3282.8,3281.9,0.797]
[1767744812790,0.98491256,3282.8,3281.9,3.04699527]
[1767744813500,0.96253377,3282.7,3281.9,0.60941803]
[1767744813702,0.96253377,3282.7,3282.4,0.001]
[1767744816892,0.96253377,3283.0,3282.4,0.001]
[1767744817099,0.795,3283.1,3282.4,0.001]
[1767744817618,0.96253377,3283.2,3282.5,0.03046458]
[1767744817919,1.44286564,3283.2,3282.5,0.03046458]
[1767744818416,4.48869871,3283.2,3282.4,0.03146551]
[1767744819187,0.96253377,3283.1,3282.4,0.001]
[1767744819434,0.96253377,3283.1,3281.7,3.0471844]
[1767744819746,0.96253377,3282.9,3281.8,3.04710443]
[1767744819898,0.96253377,3282.7,3281.9,3.04700067]
[1767744820616,0.96253377,3282.7,3281.7,6.09438797]
[1767744822718,4.00884157,3282.7,3281.7,3.04718683]
[1767744822921,0.96253377,3282.6,3281.7,3.04718683]
[1767744823218,0.96253377,3282.6,3281.8,0.61249435]
[1767744823422,0.96253377,3282.6,3281.6,3.04725009]
[1767744823591,0.92244647,3282.6,3281.6,3.04725009]
[1767744823994,0.92244647,3282.6,3281.5,3.84432962]
[1767744824210,0.92244647,3282.6,3281.6,3.04727505]
[1767744825524,0.96253377,3282.5,3282.0,0.001]
[1767744828746,4.00900372,3282.5,3282.0,0.001]
[1767744828913,4.79403254,3282.5,3282.0,0.001]
[1767744829337,0.96253377,3282.4,3281.1,3.95010661]
[1767744829942,0.96253377,3282.4,3281.2,3.95004838]
[1767744830314,0.96253377,3282.2,3281.2,3.95004838]
[1767744830633,0.96253377,3282.2,3281.3,0.39500484]
[1767744831308,0.96253377,3282.2,3281.3,1.29740341]
[1767744831930,0.96253377,3282.1,3281.3,4.34496067]
[1767744832130,0.96253377,3282.1,3281.3,3.94995583]
[1767744833445,0.96253377,3282.7,3281.4,0.93287336]
[1767744833741,0.795,3282.6,3281.6,0.90239857]
[1767744833924,0.96253377,3282.3,3281.5,0.39804306]
[1767744836239,4.00918837,3282.3,3281.5,0.39804306]
[1767744836443,0.96253377,3282.2,3281.5,0.39804306]
[1767744837120,0.96253377,3282.2,3281.5,3.44640254]
[1767744837435,0.96253377,3282.2,3281.6,0.34464025]
[1767744838635,0.96253377,3282.2,3281.5,0.001]
[1767744838958,0.96253377,3282.2,3281.5,3.04835658]
[1767744840846,0.96253377,3282.2,3281.5,0.001]
[1767744842547,0.96253377,3282.2,3281.5,0.98223836]
[1767744843247,0.96253377,3282.2,3281.5,4.02959506]
[1767744844618,0.96253377,3282.2,3281.6,0.70770004]
[1767744844948,0.002,3282.3,3281.7,1.01171037]
[1767744845241,0.002,3282.3,3281.8,0.98123836]
[1767744845746,0.002,3282.3,3281.9,1.01170851]
[1767744846348,0.002,3282.3,3281.9,0.98123836]
[1767744846718,0.002,3282.3,3281.6,1.6889384]
[1767744846915,0.94210331,3282.3,3281.6,1.6889384]
[1767744847149,0.94210331,3282.3,3281.6,4.73622395]
[1767744847649,0.94210331,3282.3,3281.7,0.4737224]
[1767744848649,0.002,3282.3,3281.8,1.01170944]
[1767744849024,0.002,3282.3,3281.8,0.98123836]
[1767744849715,0.002,3282.3,3281.9,0.001]
[1767744860266,0.92654712,3282.5,3281.9,0.001]
[1767744862761,0.002,3282.0,3281.9,0.001]
[1767744862969,0.92654712,3282.5,3281.9,0.30581795]
[1767744863146,0.94010331,3282.2,3281.7,3.04717955]
[1767744865075,0.94010331,3282.2,3281.4,6.09495946]
[1767744865874,0.94010331,3282.2,3281.3,3.07801783]
[1767744866046,0.94010331,3282.2,3281.3,3.04754211]
[1767744866246,0.94010331,3282.2,3281.4,0.99951453]
[1767744867465,0.94010331,3282.2,3281.4,4.04698696]
[1767744867769,0.002,3282.3,3281.4,4.02871079]
[1767744867951,0.002,3282.3,3281.4,3.04747243]
[1767744868152,0.94210331,3282.3,3281.5,0.98123836]
[1767744869992,0.94210331,3282.3,3281.5,4.02858261]
[1767744870283,0.94210331,3282.3,3281.6,0.40285826]
[1767744873287,0.94210331,3282.3,3281.6,3.45015131]
[1767744873779,0.002,3282.3,3281.7,0.91749497]
[1767744874817,0.002,3282.3,3281.9,0.001]
[1767744874987,0.93104558,3283.2,3282.5,0.91749497]
[1767744875159,0.93104558,3283.1,3282.3,3.96408628]
[1767744876098,0.93104558,3283.1,3281.9,0.001]
[1767744876485,3.04741122,3283.7,3282.6,0.91749497]
[1767744876486,0.93304558,3283.7,3282.6,0.91749497]
[1767744876787,1.10395014,3283.6,3282.2,0.91749497]
[1767744876989,0.93104558,3283.4,3282.4,0.91749497]
[1767744877158,0.93104558,3283.4,3282.4,3.96404176]
[1767744877486,0.93104558,3283.2,3282.4,0.91749497]
[1767744878385,0.93104558,3283.2,3282.1,1.71449497]
[1767744878760,0.93104558,3283.2,3282.2,3.04671732]
[1767744878986,0.93104558,3283.2,3282.2,3.04673694]
[1767744879487,0.93104558,3283.2,3282.2,3.96423191]
[1767744879693,0.93104558,3283.1,3282.2,3.96423191]
[1767744879862,0.93104558,3283.1,3282.2,0.91749497]
[1767744880061,0.93104558,3283.0,3281.9,0.001]
[1767744881182,0.93104558,3282.8,3281.9,0.001]
[1767744881383,0.93104558,3282.6,3281.9,0.001]
[1767744886186,0.93104558,3282.6,3281.9,0.91849497]
[1767744886901,0.93104558,3282.6,3282.2,0.001]
[1767744890774,3.04618383,3282.8,3282.2,0.001]
[1767744890975,0.39772294,3282.7,3282.2,0.001]
[1767744891704,3.97717345,3282.9,3282.2,0.001]
[1767744892201,0.93104558,3282.9,3282.2,0.001]
[1767744892605,3.97714049,3282.9,3282.2,0.001]
[1767744894006,3.97714049,3282.9,3282.2,0.91849497]
[1767744894217,0.93104558,3282.9,3282.2,0.91849497]
[1767744894427,0.47730777,3282.8,3282.2,0.91849497]
[1767744895209,1.40835335,3282.8,3282.2,0.001]
[1767744895412,0.93104558,3282.7,3282.2,0.001]
[1767744898081,0.92503361,3282.7,3282.2,0.001]
[1767744898413,0.92503361,3282.7,3282.5,0.001]
[1767744898784,0.99381807,3282.9,3282.5,0.001]
[1767744900411,1.78981807,3283.5,3282.6,0.92446611]
[1767744900611,0.99381807,3283.4,3282.5,0.001]
[1767744900917,0.99381807,3283.1,3282.5,0.001]
[1767744901083,0.796,3283.0,3282.2,0.001]
[1767744901289,0.99381807,3282.9,3282.2,0.001]
[1767744902111,0.97378789,3282.6,3282.2,0.001]
[1767744902314,0.97378789,3282.4,3282.2,0.001]
[1767744902513,0.97378789,3282.4,3281.9,0.001]
[1767744903787,1.50263337,3282.5,3281.9,0.001]
[1767744903788,0.97378789,3282.2,3281.9,0.001]
[1767744905122,0.97378789,3282.2,3281.0,3.04784992]
[1767744905309,0.97378789,3281.9,3280.8,0.97050908]
[1767744905508,0.796,3282.0,3280.9,0.97050908]
[1767744905821,0.796,3282.0,3281.1,0.97050908]
[1767744906122,3.04701544,3281.9,3281.1,0.97050908]
[1767744906287,0.97378789,3281.8,3281.1,0.97050908]
[1767744907411,0.78636432,3281.9,3281.1,0.97050908]
[1767744907607,0.97378789,3282.4,3281.2,0.97050908]
[1767744907811,0.97378789,3282.8,3281.6,0.97050908]
[1767744908112,3.04627288,3282.7,3281.8,0.97050908]
[1767744908421,1.37579397,3282.6,3281.8,0.97050908]
[1767744908586,0.40200608,3282.6,3281.8,0.97050908]
[1767744908791,3.04619784,3282.8,3281.8,0.97050908]
[1767744909219,4.01990771,3282.9,3281.8,0.97050908]
[1767744909418,4.01990771,3282.9,3282.0,0.97050908]
[1767744909890,0.002,3282.3,3282.1,0.97050908]
[1767744910092,0.97378789,3283.2,3282.2,3.49155944]
[1767744910328,0.97378789,3283.1,3282.2,3.04673694]
[1767744912426,0.97378789,3283.0,3281.9,0.797]
[1767744912615,0.97378789,3283.0,3281.9,3.84392468]
[1767744912796,0.97378789,3283.0,3282.0,3.4313116]
[1767744913631,0.97378789,3283.0,3282.0,0.38439247]
[1767744913830,0.97378789,3283.0,3282.0,1.18139247]
[1767744914533,6.09184966,3283.1,3282.0,1.18139247]
[1767744914534,3.0460873,3282.9,3282.0,2.15190155]
[1767744914693,3.0460873,3282.9,3282.1,0.97050908]
[1767744914892,0.706587,3282.8,3282.1,0.97050908]
[1767744915394,1.68037489,3282.8,3282.1,0.97050908]
[1767744915590,0.706587,3282.8,3282.1,0.97050908]
[1767744915807,0.796,3283.2,3282.1,0.97050908]
[1767744916653,3.04590173,3283.1,3282.2,3.04673694]
[1767744916817,3.04590173,3283.1,3282.3,0.97050908]
[1767744917909,0.97378789,3283.4,3282.4,0.97050908]
[1767744918237,0.97378789,3283.5,3282.5,0.97050908]
[1767744918932,0.002,3283.7,3282.5,0.97050908]
[1767744919106,0.002,3283.7,3282.7,0.97050908]
[1767744919506,0.002,3283.7,3282.9,0.97050908]
[1767744919723,0.002,3283.7,3283.1,0.97050908]
[1767744920640,3.04463206,3284.5,3283.1,0.97050908]
[1767744920641,0.97378789,3284.9,3283.4,0.97050908]
[1767744920851,0.97378789,3284.7,3283.4,0.97050908]
[1767744921848,0.97378789,3284.5,3283.4,0.97050908]
[1767744922145,6.08902148,3284.6,3283.4,0.97050908]
[1767744922146,0.002,3283.7,3283.4,0.97050908]
[1767744922561,0.97578789,3283.7,3282.8,0.97050908]
[1767744924263,4.02119398,3283.7,3282.8,0.97050908]
[1767744924573,0.4021194,3283.6,3282.8,0.97050908]
[1767744924920,1.37590729,3283.6,3282.5,1.76750908]
[1767744925121,0.97378789,3283.5,3282.5,4.81391556]
[1767744925351,0.97378789,3283.5,3282.5,4.01691556]
[1767744925551,0.97378789,3283.5,3282.6,3.04635619]
[1767744926137,0.97378789,3283.5,3282.4,3.04654938]
[1767744926138,4.01941132,3283.4,3282.4,4.01704186]
[1767744926367,0.70649605,3283.3,3282.4,4.01705313]
[1767744926664,0.70649605,3283.3,3282.4,0.97050908]
[1767744926822,1.68028394,3283.3,3282.4,0.97050908]
[1767744928351,3.04580896,3283.2,3282.4,0.97050908]
[1767744928547,3.82298059,3283.2,3282.4,0.97050908]
[1767744930854,4.79676848,3283.2,3282.4,0.97050908]
[1767744933057,1.75095952,3283.2,3282.5,0.97184539]
[1767744933352,4.79676984,3283.2,3282.5,0.97184539]
[1767744933654,4.01959821,3283.2,3282.5,0.97184539]
[1767744934246,4.01959821,3283.2,3282.7,0.001]
[1767744934963,3.04577258,3283.3,3282.7,0.001]
[1767744935172,3.75237197,3283.3,3282.7,0.001]
[1767744935666,3.75237197,3283.3,3282.7,0.97284539]
[1767744936367,0.97466163,3283.2,3282.4,0.97184539]
[1767744937052,3.04590173,3283.1,3282.4,0.97184539]
[1767744937671,4.02056336,3283.1,3282.4,0.97184539]
[1767744938366,0.97466163,3283.0,3282.2,0.97184539]
[1767744938574,0.97466163,3282.9,3282.2,0.97184539]
[1767744939249,3.04618009,3282.8,3282.2,0.97184539]
[1767744939462,4.02084172,3282.8,3282.2,0.97184539]
[1767744939772,4.02084172,3282.8,3282.0,0.97184539]
[1767744939937,4.02084172,3282.8,3282.0,1.45343019]
[1767744940143,4.02084172,3282.8,3282.0,0.97184539]
[1767744941269,0.97466163,3282.7,3282.0,0.97184539]
[1767744942353,0.97466163,3282.7,3281.7,3.9]
[1767744942553,0.97466163,3282.6,3281.7,3.9]
[1767744942753,0.795,3282.7,3281.3,1.76884539]
[1767744942754,0.97466163,3282.4,3281.3,1.76884539]
[1767744943846,0.97466163,3282.2,3281.3,1.76884539]
[1767744945957,0.97466163,3282.1,3282.0,0.001]
[1767744947146,0.97466163,3282.1,3280.8,6.94794502]
[1767744947147,0.97466163,3282.1,3280.9,0.97184539]
[1767744948048,9.93643612,3282.2,3280.9,0.97184539]
[1767744948049,0.97466163,3281.9,3280.9,0.97184539]
[1767744948244,0.97466163,3281.7,3280.9,0.97184539]
[1767744948473,0.97466163,3282.4,3281.0,0.97184539]
[1767744948644,3.04631241,3282.7,3281.2,0.97184539]
[1767744948849,3.84231241,3282.7,3281.4,0.97184539]
[1767744949152,4.81697404,3282.7,3281.6,0.97184539]
[1767744949370,5.60328194,3282.7,3281.6,0.97184539]
[1767744949570,5.60328194,3282.7,3281.7,0.97184539]
[1767744949571,0.97466163,3282.6,3281.7,0.97184539]
[1767744950277,6.09291698,3282.5,3281.7,0.97184539]
[1767744950579,0.97466163,3282.4,3281.5,0.97184539]
[1767744951853,0.97466163,3282.3,3281.5,0.97184539]
[1767744952275,3.0460873,3282.9,3281.8,0.97184539]
[1767744952477,3.8420873,3282.9,3281.9,1.00231554]
[1767744952672,0.97666163,3283.0,3281.9,1.00231554]
[1767744952866,3.04799781,3283.0,3282.0,0.97184539]
[1767744953179,0.38439978,3282.9,3282.0,0.97184539]
[1767744953389,0.97466163,3282.8,3282.0,0.97184539]
[1767744953887,0.97466163,3282.8,3281.7,0.97184539]
[1767744954257,0.97466163,3282.8,3281.4,4.01926285]
[1767744954486,0.97466163,3282.6,3281.4,4.01926285]
[1767744954655,0.97466163,3282.4,3281.4,4.80565385]
[1767744954859,0.97466163,3282.4,3281.4,1.75823639]
[1767744955053,0.97466163,3282.4,3281.4,0.97184539]
[1767744955284,0.97466163,3282.4,3281.4,4.01928522]
[1767744956570,4.02126519,3282.4,3281.4,4.01928522]
[1767744956763,0.97466163,3282.3,3281.5,0.97184539]
[1767744956968,0.97466163,3282.2,3281.5,0.97184539]
[1767744957365,0.97466163,3282.0,3280.9,4.01978274]
[1767744957581,0.97466163,3282.0,3280.7,3.04812848]
[1767744957978,0.97466163,3281.8,3280.8,3.04802625]
[1767744958179,0.97466163,3281.6,3280.8,3.04802625]
[1767744958801,0.97466163,3281.6,3281.0,0.001]
[1767744958974,0.97466163,3282.2,3281.0,0.001]
[1767744959178,0.97466163,3282.2,3281.0,0.97284539]
[1767744959386,0.002,3282.3,3281.0,0.97284539]
[1767744959387,0.002,3282.3,3281.1,1.00232297]
[1767744959686,0.002,3282.3,3281.1,0.97184539]
[1767744959891,0.002,3282.6,3281.9,0.97184539]
[1767744960393,0.002,3283.0,3281.8,0.01925457]
[1767744960394,0.97466163,3282.9,3281.8,0.01925457]
[1767744960595,0.002,3283.0,3282.1,0.97184539]
[1767744960827,0.002,3283.0,3282.2,0.4018768]
[1767744960978,0.002,3283.0,3282.2,1.37372219]
[1767744961314,0.002,3283.0,3282.3,0.97184539]
[1767744963089,0.002,3283.0,3282.3,4.01848951]
[1767744963311,0.002,3283.0,3282.3,7.06513363]
[1767744963608,0.002,3283.0,3282.4,0.74670104]
[1767744964678,0.002,3283.0,3282.4,1.67650717]
[1767744964879,0.002,3283.0,3282.5,3.04645849]
[1767744965687,0.002,3283.0,3282.6,0.92980613]
[1767744967377,0.92165479,3283.3,3282.6,3.04632529]
[1767744967614,0.002,3283.7,3282.8,0.97932778]
[1767744969385,3.9670352,3283.7,3282.8,0.97932778]
[1767744969712,3.9670352,3283.7,3282.8,0.97732778]
[1767744969890,0.91965479,3283.6,3282.3,0.97932778]
[1767744970099,0.91965479,3283.6,3282.5,3.04639721]
[1767744970302,0.91965479,3283.6,3282.5,4.02572449]
[1767744970709,0.91965479,3283.6,3282.6,3.04635118]
[1767744971207,3.96512801,3283.6,3282.6,3.04635118]
[1767744971609,3.96512801,3283.6,3282.8,0.001]
[1767744971816,4.66636854,3283.6,3282.8,0.001]
[1767744972012,0.002,3283.4,3282.8,0.001]
[1767744972706,0.92165479,3283.4,3282.8,0.001]
[1767744975233,0.92165479,3283.4,3282.4,0.94912686]
[1767744975838,3.96728762,3283.4,3282.4,0.94912686]
[1767744976031,0.92165479,3283.4,3282.4,4.7795422]
[1767744976622,0.92165479,3283.4,3282.4,7.8260935]
[1767744976830,0.92165479,3283.4,3282.4,4.7795422]
[1767744977911,0.92165479,3283.4,3282.5,0.97932778]
[1767744978232,3.96728214,3283.4,3282.5,0.97932778]
[1767744978536,0.92165479,3283.4,3282.5,0.97932778]
[1767744978748,0.92165479,3283.4,3282.5,1.76495722]
[1767744979036,0.91965479,3283.3,3281.6,0.97932778]
[1767744979240,0.91965479,3283.3,3281.9,4.02628873]
[1767744979423,0.91965479,3283.3,3281.9,0.97932778]
[1767744980054,0.91965479,3283.1,3281.7,0.797]
[1767744980252,9.13742688,3283.2,3280.9,3.04788855]
[1767744980253,0.91965479,3282.9,3281.4,4.02679833]
[1767744980479,0.91965479,3282.7,3281.4,4.02679833]
[1767744980865,0.91965479,3282.7,3281.5,3.04737231]
[1767744981061,1.09122027,3282.7,3281.6,0.40267001]
[1767744981461,1.09122027,3282.7,3281.6,1.38199779]
[1767744981658,0.91965479,3282.6,3281.7,4.02643983]
[1767744981859,0.91965479,3282.6,3281.7,0.97932778]
[1767744982059,3.96611183,3282.6,3281.7,0.97932778]
[1767744982963,0.91965479,3282.5,3281.7,0.97932778]
[1767744983683,0.91965479,3282.5,3282.2,0.001]
[1767744983986,1.71766823,3282.5,3282.2,0.001]
[1767744984182,1.71766823,3282.5,3281.2,0.797]
[1767744984183,0.91965479,3282.2,3281.2,0.797]
[1767744984566,0.91965479,3282.1,3280.8,3.04798185]
[1767744984963,0.91965479,3282.1,3280.9,3.04793116]
[1767744985463,0.91965479,3282.1,3279.3,0.97932778]
[1767744985685,0.91965479,3282.1,3279.6,3.04911328]
[1767744985860,0.91965479,3282.1,3279.5,1.00982023]
[1767744986059,0.65510739,3281.9,3279.7,0.97932778]
[1767744986259,0.65510739,3281.7,3279.9,0.97932778]
[1767744986484,0.65510739,3281.5,3279.9,0.97932778]
[1767744988264,0.65510739,3281.3,3279.9,0.97932778]
[1767744988469,0.65510739,3281.3,3279.9,4.02818606]
[1767744988668,0.65510739,3281.3,3280.0,0.97932778]
[1767744988906,0.67500669,3281.2,3280.0,0.97932778]
[1767744990266,6.09551674,3281.1,3280.1,0.97932778]
[1767744990469,0.796,3281.0,3280.1,0.97932778]
[1767744991195,5.21840601,3283.5,3280.1,0.97932778]
[1767744991196,0.796,3280.9,3280.3,0.97932778]
[1767744991360,0.796,3281.0,3280.3,0.97932778]
[1767744991560,0.796,3281.0,3280.4,0.94646744]
[1767744992263,3.04760346,3281.3,3280.4,0.94646744]
[1767744992564,0.796,3281.2,3280.4,0.94646744]
[1767744994293,0.796,3281.3,3280.5,0.97695059]
[1767744994501,3.04701544,3281.9,3280.7,0.94646744]
[1767744994703,0.796,3281.8,3280.9,0.94446744]
[1767744995428,3.0468527,3282.1,3280.9,0.94446744]
[1767744995629,3.8428527,3282.1,3281.1,0.94646744]
[1767744996040,6.88973267,3282.1,3281.1,0.94646744]
[1767744996610,6.09373267,3282.1,3281.1,0.94646744]
[1767744996805,1.40537327,3282.0,3281.1,0.94646744]
[1767744998338,3.04701544,3281.9,3281.1,0.94646744]
[1767744998843,6.09403088,3281.9,3281.1,0.94646744]
[1767744999456,6.09403088,3281.9,3280.8,0.94646744]
[1767744999745,0.65710739,3281.8,3280.8,0.94646744]
[1767744999945,0.65710739,3281.6,3280.6,0.001]
[1767745000244,1.45310739,3281.5,3280.6,0.001]
[1767745000462,0.65710739,3281.3,3280.6,0.001]
[1767745002052,6.09533096,3281.2,3280.6,0.001]
[1767745002221,0.67524384,3281.1,3280.6,0.001]
[1767745002581,0.796,3281.0,3280.6,0.001]
[1767745004134,3.84393808,3281.0,3280.6,0.001]
[1767745005738,0.796,3281.0,3280.6,0.001]
[1767745006147,3.84385371,3281.0,3280.6,0.001]
[1767745006350,0.75668731,3280.9,3280.6,0.001]
[1767745006552,0.796,3281.0,3280.6,0.001]
[1767745006553,3.84386947,3281.0,3280.6,0.001]
[1767745007258,6.89173894,3281.0,3280.6,0.001]
[1767745007836,0.65710739,3280.9,3279.9,0.94646744]
[1767745008041,1.41199202,3280.8,3279.9,0.94646744]
[1767745008338,3.04812997,3280.7,3279.9,0.94646744]
[1767745008542,0.65710739,3280.6,3279.6,0.94646744]
[1767745010043,0.65710739,3280.6,3279.7,0.94646744]
[1767745010228,0.37052374,3280.5,3279.7,0.94646744]
[1767745010753,3.41884287,3280.5,3279.7,0.94646744]
[1767745011125,0.37052374,3280.5,3279.7,0.94646744]
[1767745011329,3.41884916,3280.5,3279.7,0.94646744]
[1767745011631,3.41885443,3280.5,3279.7,0.94646744]
[1767745011845,0.65710739,3280.3,3279.4,0.94646744]
[1767745012076,0.65710739,3280.3,3279.2,1.74446744]
[1767745012241,0.65710739,3280.3,3279.3,0.94646744]
[1767745012446,6.09718918,3280.2,3279.3,0.94646744]
[1767745012634,1.47142966,3280.1,3279.3,0.94646744]
[1767745012972,1.47142966,3280.1,3279.0,3.04967605]
[1767745012973,0.65710739,3280.0,3279.0,3.04967605]
[1767745013143,0.65710739,3280.0,3278.9,3.99626964]
[1767745013327,0.65710739,3280.0,3279.1,3.99600419]
[1767745013527,0.65710739,3280.0,3279.1,3.04958285]
[1767745014069,0.65710739,3280.0,3279.0,3.04968012]
[1767745014447,0.65710739,3279.8,3278.8,3.0498963]
[1767745014642,0.65710739,3279.8,3278.8,6.0997926]
[1767745016672,0.65710739,3279.8,3278.8,3.0498963]
[1767745016969,0.65710739,3279.7,3278.8,3.0498963]
[1767745017168,0.65710739,3279.7,3278.7,3.04998189]
[1767745017485,0.796,3279.6,3278.8,0.94646744]
[1767745018673,0.796,3279.6,3278.9,0.96259553]
[1767745019181,1.33253705,3280.1,3278.9,0.96259553]
[1767745019476,0.65710739,3281.1,3279.1,0.96259553]
[1767745019636,6.09533096,3281.2,3278.8,12.19957576]
[1767745019637,0.65710739,3280.9,3279.3,0.96259553]
[1767745019844,0.65910739,3281.5,3279.5,0.96259553]
[1767745020053,0.796,3281.4,3279.7,0.96259553]
[1767745020258,0.796,3281.4,3279.9,0.96259553]
[1767745020576,0.796,3281.3,3279.9,0.96259553]
[1767745020791,0.796,3281.3,3280.1,0.96259553]
[1767745020960,0.798,3281.5,3280.1,0.96259553]
[1767745021264,0.002,3281.5,3280.3,0.96259553]
[1767745021466,0.798,3281.5,3280.3,0.96259553]
[1767745022279,0.65710739,3281.4,3279.2,0.95800233]
[1767745022485,0.65710739,3281.4,3279.8,0.95800233]
[1767745022639,0.796,3281.3,3280.1,0.95800233]
[1767745022841,6.09533096,3281.2,3280.2,0.95800233]
[1767745023035,0.65710739,3281.1,3279.3,0.95800233]
[1767745023473,0.65710739,3280.9,3279.1,0.001]
[1767745024882,0.65710739,3280.7,3279.1,0.001]
[1767745025169,0.65710739,3280.5,3279.1,0.001]
[1767745026683,0.65710739,3280.5,3279.1,0.95900233]
[1767745027048,6.09681746,3280.4,3279.1,0.95900233]
[1767745027962,0.796,3280.3,3279.2,0.98849757]
[1767745028168,0.796,3280.3,3279.4,0.95800233]
[1767745028482,3.04798652,3280.9,3279.4,0.95800233]
[1767745028781,0.796,3280.8,3279.6,0.95800233]
[1767745028985,0.796,3280.7,3279.6,0.95800233]
[1767745029277,3.84416418,3280.7,3279.8,0.95800233]
[1767745029447,1.48521339,3280.7,3279.8,0.95800233]
[1767745029851,0.796,3280.7,3279.8,0.95800233]
[1767745031254,3.84413769,3280.7,3279.9,0.95800233]
[1767745031872,6.89227538,3280.7,3279.6,0.95800233]
[1767745032071,10.59752046,3280.7,3279.6,0.95800233]
[1767745032267,10.59752046,3280.7,3279.2,0.95800233]
[1767745032268,1.71685944,3280.6,3279.2,0.95800233]
[1767745033150,6.0966316,3280.5,3279.2,4.00744693]
[1767745033369,6.0966316,3280.5,3279.2,0.95800233]
[1767745034160,6.75373899,3280.5,3279.2,0.95800233]
[1767745034349,9.80205479,3280.5,3279.2,0.95800233]
[1767745034551,1.08618068,3280.4,3279.4,0.001]
[1767745035293,3.04850166,3280.3,3279.4,0.001]
[1767745035585,3.04850166,3280.3,3279.4,0.95900233]
[1767745035877,0.65710739,3280.9,3279.4,0.95900233]
[1767745035878,0.796,3280.2,3279.4,0.95900233]
[1767745036183,0.796,3280.1,3278.9,0.95800233]
[1767745036495,0.796,3280.1,3279.0,0.95800233]
[1767745036707,3.70477287,3281.2,3279.3,0.95800233]
[1767745036862,0.796,3281.1,3279.5,0.95800233]
[1767745037061,1.05961038,3281.0,3279.5,0.95800233]
[1767745037264,1.05961038,3281.0,3279.6,0.95800233]
[1767745037265,6.09588832,3280.9,3279.6,0.95800233]
[1767745038782,9.14383248,3280.9,3279.6,0.95800233]
[1767745040757,9.80093987,3280.9,3279.6,0.95800233]
[1767745041265,9.14383248,3280.9,3279.6,0.95800233]
[1767745041467,1.02034429,3280.8,3279.6,0.95800233]
[1767745042188,6.09625994,3280.7,3279.6,0.95800233]
[1767745042421,0.796,3280.6,3279.6,0.95800233]
[1767745042686,1.45310739,3280.6,3279.1,0.95800233]
[1767745043098,0.65710739,3280.5,3279.1,0.95800233]
[1767745043408,0.65710739,3280.5,3278.2,0.95800233]
[1767745043707,0.65710739,3280.5,3278.4,0.95800233]
[1767745044381,0.65710739,3280.3,3278.5,0.95800233]
[1767745046295,0.65710739,3280.1,3278.6,0.95800233]
[1767745046465,0.796,3280.0,3278.6,0.95800233]
[1767745046665,1.45310739,3280.0,3278.7,0.95800233]
[1767745047276,1.45310739,3280.0,3278.7,0.95900233]
[1767745047976,0.65710739,3279.9,3278.7,0.95900233]
[1767745048590,6.0979328,3279.8,3278.7,0.95900233]
[1767745050367,3.0489664,3279.8,3278.7,0.95900233]
[1767745050601,0.91467133,3279.7,3278.7,0.95900233]
[1767745052703,6.09830466,3279.6,3278.7,0.95900233]
[1767745053603,0.65710739,3280.5,3278.7,0.95900233]
[1767745053770,6.0968009,3280.5,3278.9,0.91832968]
[1767745053969,6.8928009,3280.5,3279.1,0.91832968]
[1767745054297,0.68948009,3280.4,3279.1,0.94882585]
[1767745054608,6.8928009,3280.5,3279.3,0.91832968]
[1767745055370,3.84440045,3280.5,3279.3,0.91832968]
[1767745055680,6.8928009,3280.5,3279.3,0.91832968]
[1767745057309,6.8928009,3280.5,3279.4,0.91832968]
[1767745057505,3.84440045,3280.5,3279.4,0.91832968]
[1767745057815,6.8928009,3280.5,3279.6,0.91832968]
[1767745058874,3.84440045,3280.5,3279.6,0.91832968]
[1767745059275,0.002,3280.6,3279.7,0.91832968]
[1767745059476,0.798,3280.6,3279.7,0.91832968]
[1767745060012,0.002,3280.6,3279.7,0.91832968]
[1767745060181,0.002,3280.6,3279.9,0.91832968]
[1767745060783,0.002,3280.2,3279.9,0.91832968]
[1767745060984,0.002,3280.5,3280.2,0.91832968]
[1767745064315,0.002,3280.9,3280.6,0.91832968]
[1767745064916,6.09607412,3280.8,3279.1,3.04960747]
[1767745065127,0.65710739,3280.7,3279.2,0.30496075]
[1767745065416,0.796,3280.6,3279.3,0.91832968]
[1767745067220,3.0483158,3280.5,3279.5,0.91832968]
[1767745067385,3.0483158,3280.5,3279.7,0.91832968]
[1767745068719,6.0966316,3280.5,3279.7,0.91832968]
[1767745069585,3.0483158,3280.5,3279.7,0.91832968]
[1767745071923,3.04803706,3280.8,3279.8,0.91832968]
[1767745072106,0.796,3280.7,3280.0,0.91832968]
[1767745072300,1.21906133,3280.7,3280.0,0.91832968]
[1767745074226,3.04822288,3280.6,3280.0,0.91832968]